[Event "Rapid Tournament (RAP)"]
[Site "Biel, Switzerland"]
[Date "2026.07.12"]
[Round "6.13"]
[White "Ghosh, Diptayan"]
[Black "Ling, Chenxuan"]
[Result "1-0"]
[TimeControl "15 + 5"]
[WhiteTitle "-"]
[BlackTitle "-"]
[WhiteFideId "5045207"]
[BlackFideId "30983118"]
[WhiteElo "2480"]
[BlackElo "2077"]

1. c4 {[%emt 00:00:43]} e5 {[%clk 00:14:24]} {[%emt 00:00:05]} 2. Nc3 {[%clk
00:15:08]} {[%emt 00:00:04]} Nf6 {[%clk 00:14:28]} 3. Nf3 {[%clk 00:15:11]}
{[%emt 00:00:02]} Nc6 {[%clk 00:14:30]} {[%emt 00:00:03]} 4. e3 {[%clk
00:15:15]} {[%emt 00:00:01]} Bb4 {[%clk 00:14:10]} {[%emt 00:00:26]} 5. Qc2
{[%clk 00:15:18]} {[%emt 00:00:02]} O-O {[%clk 00:14:10]} {[%emt 00:00:05]} 6.
Nd5 {[%clk 00:15:21]} {[%emt 00:00:02]} d6 {[%clk 00:13:58]} {[%emt 00:00:17]}
7. a3 {[%clk 00:15:17]} {[%emt 00:00:09]} Bc5 {[%clk 00:13:59]} {[%emt
00:00:03]} 8. Ng5 {[%clk 00:14:50]} {[%emt 00:00:32]} g6 {[%clk 00:13:43]}
{[%emt 00:00:22]} 9. Nxf6+ {[%clk 00:14:52]} {[%emt 00:00:02]} Qxf6 {[%clk
00:13:47]} {[%emt 00:00:02]} 10. Ne4 {[%clk 00:14:51]} {[%emt 00:00:06]} Qe7
{[%clk 00:13:47]} {[%emt 00:00:06]} 11. Be2 {[%clk 00:14:26]} {[%emt 00:00:28]}
Bf5 {[%clk 00:12:44]} {[%emt 00:01:08]} 12. g4 {[%clk 00:14:15]} {[%emt
00:00:17]} Bxe4 {[%clk 00:12:43]} {[%emt 00:00:06]} 13. Qxe4 {[%clk 00:14:18]}
a5 {[%clk 00:12:41]} {[%emt 00:00:07]} 14. b3 {[%clk 00:14:17]} {[%emt
00:00:06]} Qe6 {[%clk 00:11:49]} {[%emt 00:00:58]} 15. Bb2 {[%clk 00:14:17]}
{[%emt 00:00:05]} Ne7 {[%clk 00:11:41]} {[%emt 00:00:13]} 16. h4 {[%clk
00:13:23]} {[%emt 00:00:58]} c6 {[%clk 00:10:52]} {[%emt 00:00:54]} 17. h5
{[%clk 00:13:26]} {[%emt 00:00:02]} d5 {[%clk 00:10:32]} {[%emt 00:00:25]} 18.
Qxe5 {[%clk 00:13:12]} {[%emt 00:00:20]} Qxe5 {[%clk 00:10:29]} {[%emt
00:00:08]} 19. Bxe5 {[%clk 00:13:15]} f6 {[%clk 00:10:30]} {[%emt 00:00:04]} 20.
Bb2 {[%clk 00:13:17]} {[%emt 00:00:03]} Rad8 {[%clk 00:10:16]} {[%emt
00:00:20]} 21. cxd5 {[%clk 00:13:03]} {[%emt 00:00:19]} Nxd5 {[%emt 00:00:10]}
22. Rc1 {[%clk 00:13:04]} Be7 {[%clk 00:10:04]} {[%emt 00:00:16]} 23. Bc4
{[%clk 00:12:56]} {[%emt 00:00:13]} Kg7 {[%clk 00:09:51]} {[%emt 00:00:17]} 24.
g5 {[%clk 00:12:00]} {[%emt 00:01:01]} Nb6 {[%clk 00:08:39]} {[%emt 00:01:17]}
25. Be2 {[%clk 00:11:51]} {[%emt 00:00:14]} Kg8 {[%clk 00:07:53]} {[%emt
00:00:52]} 26. hxg6 {[%clk 00:10:54]} {[%emt 00:01:01]} hxg6 {[%clk 00:07:56]}
{[%emt 00:00:02]} 27. gxf6 {[%clk 00:09:43]} {[%emt 00:01:16]} Bxf6 {[%clk
00:07:58]} {[%emt 00:00:02]} 28. Bxf6 {[%clk 00:09:47]} {[%emt 00:00:02]} Rxf6
{[%clk 00:08:02]} {[%emt 00:00:01]} 29. Rc5 {[%clk 00:09:46]} {[%emt 00:00:06]}
a4 {[%clk 00:06:59]} {[%emt 00:01:09]} 30. b4 {[%clk 00:09:45]} {[%emt
00:00:05]} Rfd6 {[%clk 00:06:58]} {[%emt 00:00:07]} 31. d4 {[%clk 00:09:42]}
{[%emt 00:00:08]} Kg7 {[%clk 00:07:00]} {[%emt 00:00:02]} 32. Rg5 {[%clk
00:08:25]} {[%emt 00:01:22]} Nd5 {[%clk 00:06:40]} {[%emt 00:00:26]} 33. Rhg1
{[%clk 00:08:28]} {[%emt 00:00:01]} b6 {[%clk 00:06:31]} {[%emt 00:00:14]} 34.
Bd3 {[%clk 00:08:27]} {[%emt 00:00:07]} Ne7 {[%clk 00:06:33]} {[%emt 00:00:02]}
35. Ke2 {[%clk 00:08:22]} {[%emt 00:00:10]} Rd5 {[%clk 00:06:23]} {[%emt
00:00:15]} 36. Be4 {[%clk 00:08:11]} {[%emt 00:00:16]} Rxg5 {[%clk 00:06:13]}
{[%emt 00:00:15]} 37. Rxg5 {[%clk 00:08:15]} {[%emt 00:00:02]} Kf6 {[%clk
00:06:14]} {[%emt 00:00:03]} 38. Rg1 {[%clk 00:08:17]} {[%emt 00:00:03]} Rc8
{[%clk 00:06:16]} {[%emt 00:00:03]} 39. Rc1 {[%clk 00:08:20]} {[%emt 00:00:02]}
Ke6 {[%clk 00:06:03]} {[%emt 00:00:19]} 40. Bc2 {[%clk 00:08:12]} {[%emt
00:00:13]} Kd6 {[%clk 00:05:55]} {[%emt 00:00:13]} 41. Be4 {[%clk 00:07:40]}
{[%emt 00:00:37]} g5 {[%clk 00:05:14]} {[%emt 00:00:46]} 42. Kd3 {[%clk
00:07:35]} {[%emt 00:00:10]} Rh8 {[%emt 00:00:34]} 43. Rg1 {[%clk 00:07:33]}
Rg8 {[%clk 00:04:34]} {[%emt 00:00:23]} 44. Rh1 {[%clk 00:07:31]} {[%emt
00:00:07]} Rf8 {[%clk 00:04:18]} {[%emt 00:00:21]} 45. Rh6+ {[%clk 00:07:31]}
{[%emt 00:00:04]} Kc7 {[%clk 00:04:16]} {[%emt 00:00:07]} 46. f3 {[%clk
00:07:32]} {[%emt 00:00:04]} Rf7 {[%clk 00:04:10]} {[%emt 00:00:12]} 47. Kc4
{[%clk 00:07:02]} {[%emt 00:00:35]} Rg7 {[%clk 00:04:00]} {[%emt 00:00:15]} 48.
Rh3 {[%clk 00:06:00]} {[%emt 00:01:07]} b5+ {[%clk 00:03:28]} {[%emt 00:00:37]}
49. Kd3 {[%clk 00:05:50]} {[%emt 00:00:14]} Kd6 {[%clk 00:03:27]} {[%emt
00:00:06]} 50. Kd2 {[%clk 00:05:08]} {[%emt 00:00:48]} Rg8 {[%clk 00:03:06]}
{[%emt 00:00:25]} 51. Rh6+ {[%clk 00:04:06]} {[%emt 00:01:07]} Kc7 {[%clk
00:03:07]} {[%emt 00:00:03]} 52. Rh1 {[%clk 00:03:05]} {[%emt 00:01:07]} Kd6
{[%clk 00:03:08]} {[%emt 00:00:04]} 53. Kd3 {[%clk 00:03:06]} {[%emt 00:00:04]}
Rg7 {[%clk 00:03:01]} {[%emt 00:00:11]} 54. Rg1 {[%clk 00:03:04]} {[%emt
00:00:07]} Rg8 {[%clk 00:03:03]} {[%emt 00:00:04]} 55. Rg4 {[%clk 00:03:05]}
{[%emt 00:00:04]} Kc7 {[%clk 00:02:58]} {[%emt 00:00:10]} 56. Kd2 {[%clk
00:02:54]} {[%emt 00:00:15]} Kd6 {[%clk 00:03:00]} {[%emt 00:00:03]} 57. Kc3
{[%clk 00:02:16]} {[%emt 00:00:44]} Kc7 {[%clk 00:02:59]} {[%emt 00:00:06]} 58.
Rg2 {[%clk 00:01:43]} {[%emt 00:00:37]} Kd6 {[%clk 00:03:00]} {[%emt 00:00:04]}
59. Kd2 {[%clk 00:01:46]} {[%emt 00:00:03]} Kc7 {[%clk 00:03:01]} {[%emt
00:00:04]} 60. Bb1 {[%clk 00:01:42]} {[%emt 00:00:08]} Kd6 {[%clk 00:02:54]}
{[%emt 00:00:12]} 61. Kd3 {[%clk 00:01:41]} {[%emt 00:00:06]} Rf8 {[%clk
00:02:39]} {[%emt 00:00:20]} 62. Ke2 {[%clk 00:01:39]} {[%emt 00:00:07]} Nd5
{[%clk 00:02:39]} {[%emt 00:00:05]} 63. Be4 {[%clk 00:01:35]} {[%emt 00:00:09]}
Rg8 {[%clk 00:02:04]} {[%emt 00:00:40]} 64. Bxd5 {[%clk 00:01:27]} {[%emt
00:00:13]} cxd5 {[%clk 00:02:08]} {[%emt 00:00:02]} 65. e4 {[%clk 00:01:20]}
{[%emt 00:00:11]} Ke6 {[%clk 00:01:53]} {[%emt 00:00:20]} 66. Ke3 {[%clk
00:01:24]} {[%emt 00:00:02]} dxe4 {[%clk 00:01:25]} {[%emt 00:00:33]} 67. fxe4
{[%clk 00:01:27]} {[%emt 00:00:02]} Kd6 {[%clk 00:01:19]} {[%emt 00:00:11]} 68.
Rg1 {[%clk 00:00:57]} {[%emt 00:00:34]} Ke6 {[%clk 00:01:21]} {[%emt 00:00:04]}
69. Rh1 {[%clk 00:00:56]} {[%emt 00:00:06]} Rc8 {[%clk 00:01:21]} {[%emt
00:00:05]} 70. Rh6+ {[%clk 00:00:56]} {[%emt 00:00:04]} Kd7 {[%clk 00:01:25]}
{[%emt 00:00:02]} 71. d5 {[%clk 00:01:00]} Rc3+ {[%clk 00:01:27]} {[%emt
00:00:03]} 72. Kd4 {[%clk 00:01:04]} Rxa3 {[%clk 00:01:31]} {[%emt 00:00:01]}
73. e5 {[%emt 00:00:08]} Ra1 {[%clk 00:01:28]} 74. Rh7+ {[%clk 00:01:09]}
{[%emt 00:00:04]} Kd8 {[%emt 00:00:05]} 75. e6 {[%clk 00:01:09]} {[%emt
00:00:03]} a3 {[%clk 00:01:19]} {[%emt 00:00:17]} 76. d6 {[%clk 00:01:01]}
{[%emt 00:00:12]} Rd1+ {[%clk 00:01:21]} {[%emt 00:00:03]} 77. Kc5 {[%clk
00:01:05]} {[%emt 00:00:01]} Rc1+ {[%clk 00:01:21]} {[%emt 00:00:05]} 78. Kb6
{[%clk 00:01:04]} {[%emt 00:00:06]} 1-0

[Event "Rapid Tournament (RAP)"]
[Site "Biel, Switzerland"]
[Date "2026.07.12"]
[Round "6.14"]
[White "Maier, Christian"]
[Black "Sadeghi, Hassan Roger"]
[Result "1-0"]
[TimeControl "15 + 5"]
[WhiteTitle "-"]
[BlackTitle "-"]
[WhiteFideId "4601955"]
[BlackFideId "1304712"]
[WhiteElo "2314"]
[BlackElo "2028"]

1. e4 {[%clk 00:15:01]} {[%emt 00:00:09]} e5 {[%clk 00:15:07]} {[%emt
00:00:04]} 2. Nf3 {[%clk 00:15:04]} {[%emt 00:00:02]} Nc6 {[%clk 00:15:11]}
{[%emt 00:00:01]} 3. Bb5 {[%clk 00:15:07]} {[%emt 00:00:02]} Bc5 {[%clk
00:15:10]} {[%emt 00:00:05]} 4. c3 {[%clk 00:15:10]} {[%emt 00:00:02]} Nge7
{[%clk 00:15:13]} {[%emt 00:00:02]} 5. O-O {[%clk 00:15:08]} {[%emt 00:00:08]}
Bb6 {[%clk 00:15:18]} 6. h3 {[%clk 00:15:00]} {[%emt 00:00:13]} d6 {[%clk
00:15:14]} {[%emt 00:00:08]} 7. d4 {[%clk 00:15:03]} {[%emt 00:00:03]} O-O
{[%clk 00:15:16]} {[%emt 00:00:02]} 8. Re1 {[%clk 00:15:01]} {[%emt 00:00:08]}
h6 {[%clk 00:15:09]} {[%emt 00:00:11]} 9. Na3 {[%clk 00:14:51]} {[%emt
00:00:15]} Ng6 {[%clk 00:14:44]} {[%emt 00:00:30]} 10. Nc4 {[%clk 00:14:49]}
{[%emt 00:00:08]} Qf6 {[%clk 00:14:20]} {[%emt 00:00:28]} 11. Nxb6 {[%clk
00:14:50]} {[%emt 00:00:04]} axb6 {[%clk 00:14:22]} {[%emt 00:00:03]} 12. Bf1
{[%clk 00:14:37]} {[%emt 00:00:19]} Nf4 {[%clk 00:14:10]} {[%emt 00:00:16]} 13.
Kh2 {[%clk 00:14:11]} {[%emt 00:00:31]} g5 {[%clk 00:13:45]} {[%emt 00:00:30]}
14. g3 {[%clk 00:13:24]} {[%emt 00:00:53]} Ng6 {[%clk 00:13:43]} {[%emt
00:00:06]} 15. Be3 {[%clk 00:13:04]} {[%emt 00:00:25]} Kg7 {[%clk 00:11:42]}
{[%emt 00:02:06]} 16. d5 {[%clk 00:12:41]} {[%emt 00:00:28]} Nb8 {[%clk
00:11:22]} {[%emt 00:00:25]} 17. Bg2 {[%clk 00:11:49]} {[%emt 00:00:57]} Qe7
{[%clk 00:10:46]} {[%emt 00:00:41]} 18. Nd2 {[%clk 00:11:12]} {[%emt 00:00:42]}
Nd7 {[%clk 00:08:38]} {[%emt 00:02:13]} 19. c4 {[%clk 00:10:59]} {[%emt
00:00:18]} Rh8 {[%clk 00:08:25]} {[%emt 00:00:19]} 20. Kg1 {[%clk 00:09:18]}
{[%emt 00:01:46]} h5 {[%clk 00:08:11]} {[%emt 00:00:18]} 21. Nf3 {[%clk
00:09:12]} {[%emt 00:00:10]} f6 {[%clk 00:07:37]} {[%emt 00:00:40]} 22. Nh2
{[%clk 00:09:02]} {[%emt 00:00:15]} Nc5 {[%clk 00:06:55]} {[%emt 00:00:47]} 23.
b4 {[%clk 00:08:54]} {[%emt 00:00:14]} Na4 {[%clk 00:06:58]} {[%emt 00:00:02]}
24. Rc1 {[%clk 00:08:40]} {[%emt 00:00:19]} Bd7 {[%clk 00:06:42]} {[%emt
00:00:20]} 25. Rc2 {[%clk 00:07:32]} {[%emt 00:01:13]} h4 {[%clk 00:05:54]}
{[%emt 00:00:53]} 26. g4 {[%clk 00:07:08]} {[%emt 00:00:29]} Nf4 {[%clk
00:05:42]} {[%emt 00:00:17]} 27. Nf1 {[%clk 00:07:01]} {[%emt 00:00:11]} Rhd8
{[%clk 00:04:18]} {[%emt 00:01:30]} 28. Bc1 {[%clk 00:07:01]} {[%emt 00:00:05]}
Rac8 {[%clk 00:03:32]} {[%emt 00:00:51]} 29. Ne3 {[%clk 00:06:57]} {[%emt
00:00:09]} c6 {[%clk 00:03:32]} {[%emt 00:00:04]} 30. dxc6 {[%clk 00:06:04]}
{[%emt 00:00:59]} bxc6 {[%clk 00:03:07]} {[%emt 00:00:31]} 31. Rd2 {[%clk
00:06:08]} {[%emt 00:00:01]} b5 {[%clk 00:02:29]} {[%emt 00:00:43]} 32. Bf1
{[%clk 00:05:23]} {[%emt 00:00:50]} Be6 {[%clk 00:01:59]} {[%emt 00:00:35]} 33.
Kh2 {[%clk 00:05:10]} {[%emt 00:00:17]} Kh6 {[%clk 00:01:57]} {[%emt 00:00:07]}
34. cxb5 {[%clk 00:05:07]} {[%emt 00:00:08]} cxb5 {[%clk 00:02:00]} {[%emt
00:00:02]} 35. Qf3 {[%clk 00:04:16]} {[%emt 00:00:56]} Qb7 {[%clk 00:01:42]}
{[%emt 00:00:23]} 36. Bb2 {[%clk 00:03:31]} {[%emt 00:00:50]} Nc3 {[%clk
00:00:48]} {[%emt 00:00:59]} 37. Bxc3 {[%clk 00:03:32]} {[%emt 00:00:04]} Rxc3
{[%clk 00:00:51]} {[%emt 00:00:01]} 38. Nf5+ {[%clk 00:03:30]} {[%emt
00:00:08]} Bxf5 {[%clk 00:00:34]} {[%emt 00:00:22]} 39. Qxc3 {[%clk 00:03:33]}
{[%emt 00:00:02]} Bxe4 {[%clk 00:00:38]} 40. Red1 {[%clk 00:02:11]} {[%emt
00:01:27]} Bg2 {[%clk 00:00:36]} {[%emt 00:00:07]} 41. f3 {[%clk 00:02:01]}
{[%emt 00:00:16]} Bxf3 {[%clk 00:00:33]} {[%emt 00:00:08]} 42. Rxd6 {[%clk
00:02:01]} {[%emt 00:00:04]} Bxd1 {[%clk 00:00:13]} {[%emt 00:00:25]} 43. Rxd8
{[%clk 00:02:05]} {[%emt 00:00:01]} Qe4 {[%clk 00:00:06]} {[%emt 00:00:12]} 44.
Rd5 {[%emt 00:00:16]} 1-0

[Event "Rapid Tournament (RAP)"]
[Site "Biel, Switzerland"]
[Date "2026.07.12"]
[Round "6.15"]
[White "Alexakis, Dimitrios"]
[Black "Filipovic, Branko"]
[Result "0-1"]
[TimeControl "15 + 5"]
[WhiteTitle "-"]
[BlackTitle "-"]
[WhiteFideId "4200527"]
[BlackFideId "14507951"]
[WhiteElo "1954"]
[BlackElo "2279"]

1. e4 {[%clk 00:14:15]} {[%emt 00:00:54]} Nf6 {[%clk 00:15:07]} {[%emt
00:00:03]} 2. e5 {[%clk 00:14:14]} {[%emt 00:00:06]} Nd5 {[%clk 00:15:11]}
{[%emt 00:00:01]} 3. d4 {[%clk 00:14:17]} {[%emt 00:00:02]} d6 {[%clk
00:15:15]} {[%emt 00:00:01]} 4. Nf3 {[%clk 00:14:20]} {[%emt 00:00:02]} g6
{[%clk 00:15:18]} {[%emt 00:00:02]} 5. c4 {[%clk 00:14:14]} {[%emt 00:00:12]}
Nb6 {[%clk 00:15:21]} 6. exd6 {[%clk 00:14:15]} {[%emt 00:00:04]} cxd6 {[%clk
00:15:25]} {[%emt 00:00:01]} 7. Nc3 {[%clk 00:14:14]} {[%emt 00:00:07]} Bg7
{[%clk 00:15:29]} 8. Be2 {[%clk 00:14:12]} {[%emt 00:00:06]} O-O {[%clk
00:15:30]} {[%emt 00:00:04]} 9. h3 {[%clk 00:14:13]} {[%emt 00:00:04]} Nc6
{[%clk 00:15:33]} {[%emt 00:00:02]} 10. O-O {[%clk 00:14:12]} {[%emt 00:00:06]}
Bf5 {[%clk 00:15:10]} {[%emt 00:00:28]} 11. Bg5 {[%clk 00:13:49]} {[%emt
00:00:28]} h6 {[%clk 00:14:09]} {[%emt 00:01:07]} 12. Be3 {[%clk 00:13:51]}
{[%emt 00:00:02]} d5 {[%clk 00:14:12]} {[%emt 00:00:02]} 13. c5 {[%clk
00:13:36]} {[%emt 00:00:20]} Nc4 {[%clk 00:14:15]} {[%emt 00:00:02]} 14. Bxc4
{[%clk 00:13:04]} {[%emt 00:00:38]} dxc4 {[%clk 00:14:19]} 15. d5 {[%clk
00:13:07]} {[%emt 00:00:01]} Nb4 {[%clk 00:14:12]} {[%emt 00:00:12]} 16. Nd4
{[%clk 00:13:11]} {[%emt 00:00:01]} Bd3 {[%clk 00:14:06]} {[%emt 00:00:12]} 17.
a3 {[%clk 00:13:13]} {[%emt 00:00:02]} Nxd5 {[%clk 00:13:48]} {[%emt 00:00:23]}
18. Re1 {[%clk 00:12:57]} {[%emt 00:00:22]} Nxe3 {[%clk 00:13:48]} {[%emt
00:00:05]} 19. fxe3 {[%clk 00:12:54]} {[%emt 00:00:07]} Bxd4 {[%clk 00:13:42]}
{[%emt 00:00:11]} 20. exd4 {[%clk 00:12:55]} {[%emt 00:00:04]} Qxd4+ {[%clk
00:13:46]} {[%emt 00:00:02]} 21. Kh1 {[%clk 00:12:52]} {[%emt 00:00:08]} Qxc5
{[%clk 00:13:45]} {[%emt 00:00:06]} 22. Qd2 {[%clk 00:12:50]} {[%emt 00:00:06]}
Kh7 {[%clk 00:13:29]} {[%emt 00:00:21]} 23. b4 {[%clk 00:12:31]} {[%emt
00:00:24]} Qc7 {[%clk 00:13:10]} {[%emt 00:00:25]} 24. Nd5 {[%clk 00:12:24]}
{[%emt 00:00:12]} Qd6 {[%clk 00:13:12]} {[%emt 00:00:02]} 25. Nxe7 {[%clk
00:11:45]} {[%emt 00:00:44]} Rae8 {[%clk 00:13:03]} {[%emt 00:00:15]} 26. Qe3
{[%clk 00:11:39]} {[%emt 00:00:11]} f5 {[%clk 00:12:30]} {[%emt 00:00:38]} 27.
Qc5 {[%clk 00:10:51]} {[%emt 00:00:52]} Qxc5 {[%clk 00:11:55]} {[%emt
00:00:40]} 28. bxc5 {[%clk 00:10:55]} {[%emt 00:00:01]} Be4 {[%clk 00:11:44]}
{[%emt 00:00:17]} 29. Rxe4 {[%clk 00:10:45]} {[%emt 00:00:14]} fxe4 {[%clk
00:11:47]} {[%emt 00:00:02]} 30. Nd5 {[%clk 00:10:49]} {[%emt 00:00:01]} e3
{[%clk 00:11:45]} {[%emt 00:00:08]} 31. Re1 {[%clk 00:10:52]} {[%emt 00:00:01]}
e2 {[%clk 00:11:48]} {[%emt 00:00:03]} 0-1

[Event "Rapid Tournament (RAP)"]
[Site "Biel, Switzerland"]
[Date "2026.07.12"]
[Round "6.16"]
[White "Gautier, Anand"]
[Black "Egli, Urs"]
[Result "1-0"]
[TimeControl "15 + 5"]
[WhiteTitle "-"]
[BlackTitle "-"]
[WhiteFideId "26010186"]
[BlackFideId "1306685"]
[WhiteElo "2223"]
[BlackElo "1964"]

1. e4 {[%clk 00:15:08]} {[%emt 00:00:02]} g6 {[%clk 00:15:09]} {[%emt
00:00:02]} 2. d4 {[%clk 00:15:12]} {[%emt 00:00:03]} Bg7 {[%clk 00:15:12]} 3.
Nc3 {[%clk 00:15:17]} c5 {[%clk 00:15:16]} 4. Nf3 {[%clk 00:15:12]} {[%emt
00:00:10]} cxd4 {[%clk 00:15:18]} {[%emt 00:00:03]} 5. Nxd4 {[%clk 00:15:16]}
{[%emt 00:00:01]} Nc6 {[%clk 00:15:21]} {[%emt 00:00:01]} 6. Be3 {[%clk
00:15:19]} {[%emt 00:00:03]} d6 {[%clk 00:15:21]} {[%emt 00:00:05]} 7. Bc4
{[%clk 00:15:15]} {[%emt 00:00:09]} Nf6 {[%clk 00:15:15]} {[%emt 00:00:11]} 8.
h3 {[%clk 00:14:26]} {[%emt 00:00:54]} a6 {[%clk 00:14:39]} {[%emt 00:00:41]} 9.
Bb3 {[%clk 00:14:29]} {[%emt 00:00:02]} Na5 {[%clk 00:14:03]} {[%emt 00:00:41]}
10. O-O {[%clk 00:14:16]} {[%emt 00:00:18]} Nxb3 {[%clk 00:13:34]} {[%emt
00:00:34]} 11. axb3 {[%clk 00:14:20]} {[%emt 00:00:01]} O-O {[%clk 00:12:53]}
{[%emt 00:00:47]} 12. Re1 {[%clk 00:14:15]} {[%emt 00:00:09]} Rb8 {[%clk
00:12:00]} {[%emt 00:00:58]} 13. Qd2 {[%clk 00:14:18]} {[%emt 00:00:02]} b5
{[%clk 00:11:57]} {[%emt 00:00:09]} 14. Nc6 {[%clk 00:14:19]} {[%emt 00:00:03]}
Qc7 {[%clk 00:11:55]} {[%emt 00:00:07]} 15. Nxb8 {[%clk 00:14:21]} {[%emt
00:00:03]} Qxb8 {[%clk 00:11:59]} {[%emt 00:00:01]} 16. Bh6 {[%clk 00:14:23]}
{[%emt 00:00:02]} Bb7 {[%clk 00:11:56]} {[%emt 00:00:09]} 17. Bxg7 {[%clk
00:14:26]} {[%emt 00:00:03]} Kxg7 {[%clk 00:11:59]} {[%emt 00:00:01]} 18. b4
{[%clk 00:14:29]} {[%emt 00:00:02]} Rc8 {[%clk 00:11:51]} {[%emt 00:00:12]} 19.
Nd5 {[%clk 00:14:11]} {[%emt 00:00:23]} Bxd5 {[%clk 00:11:42]} {[%emt
00:00:15]} 20. exd5 {[%clk 00:14:15]} {[%emt 00:00:01]} Qb7 {[%clk 00:11:43]}
{[%emt 00:00:04]} 21. Red1 {[%clk 00:13:49]} {[%emt 00:00:31]} Rc4 {[%clk
00:11:37]} {[%emt 00:00:10]} 22. c3 {[%clk 00:13:53]} {[%emt 00:00:02]} Re4
{[%clk 00:11:22]} {[%emt 00:00:20]} 23. b3 {[%clk 00:13:24]} {[%emt 00:00:34]}
Re5 {[%clk 00:11:17]} {[%emt 00:00:10]} 24. c4 {[%clk 00:13:27]} {[%emt
00:00:02]} bxc4 {[%clk 00:11:08]} {[%emt 00:00:14]} 25. bxc4 {[%clk 00:13:31]}
{[%emt 00:00:01]} Qb6 {[%clk 00:10:54]} {[%emt 00:00:19]} 26. Rac1 {[%clk
00:13:15]} {[%emt 00:00:20]} a5 {[%clk 00:10:42]} {[%emt 00:00:18]} 27. bxa5
{[%clk 00:13:05]} {[%emt 00:00:15]} Qc5 {[%clk 00:10:45]} {[%emt 00:00:02]} 28.
a6 {[%clk 00:13:03]} {[%emt 00:00:07]} Ne4 {[%clk 00:10:37]} {[%emt 00:00:12]}
29. Qd4 {[%clk 00:13:07]} {[%emt 00:00:02]} Qc8 {[%clk 00:10:21]} {[%emt
00:00:22]} 30. f4 {[%clk 00:13:07]} {[%emt 00:00:04]} 1-0

[Event "Rapid Tournament (RAP)"]
[Site "Biel, Switzerland"]
[Date "2026.07.12"]
[Round "6.17"]
[White "Kukushkin, Ivan"]
[Black "Pinson, Clement"]
[Result "1-0"]
[TimeControl "15 + 5"]
[WhiteTitle "-"]
[BlackTitle "-"]
[WhiteFideId "11634103"]
[BlackFideId "26098660"]
[WhiteElo "2186"]
[BlackElo "1924"]

1. e4 {[%clk 00:15:08]} {[%emt 00:00:03]} e5 {[%clk 00:15:09]} 2. Nc3 {[%clk
00:15:12]} Nf6 {[%clk 00:15:06]} {[%emt 00:00:08]} 3. Bc4 {[%clk 00:15:16]}
{[%emt 00:00:01]} Nxe4 {[%clk 00:15:04]} {[%emt 00:00:08]} 4. Qh5 {[%clk
00:15:17]} {[%emt 00:00:03]} Nd6 {[%clk 00:15:06]} {[%emt 00:00:03]} 5. Qxe5+
{[%clk 00:15:20]} {[%emt 00:00:02]} Qe7 {[%clk 00:15:10]} 6. Qxe7+ {[%clk
00:15:24]} {[%emt 00:00:02]} Bxe7 {[%clk 00:15:14]} {[%emt 00:00:02]} 7. Bb3
{[%clk 00:15:28]} Nf5 {[%clk 00:15:06]} {[%emt 00:00:13]} 8. Nf3 {[%clk
00:15:30]} {[%emt 00:00:02]} O-O {[%clk 00:15:04]} {[%emt 00:00:07]} 9. d4
{[%clk 00:15:34]} {[%emt 00:00:01]} Nc6 {[%clk 00:14:33]} {[%emt 00:00:36]} 10.
d5 {[%clk 00:15:32]} {[%emt 00:00:08]} Ncd4 {[%clk 00:14:27]} {[%emt 00:00:11]}
11. Nxd4 {[%clk 00:15:35]} {[%emt 00:00:01]} Nxd4 {[%clk 00:14:31]} {[%emt
00:00:02]} 12. O-O {[%clk 00:15:37]} {[%emt 00:00:03]} Nxb3 {[%clk 00:14:30]}
{[%emt 00:00:06]} 13. axb3 {[%clk 00:15:40]} {[%emt 00:00:02]} a6 {[%clk
00:13:12]} {[%emt 00:01:22]} 14. Re1 {[%clk 00:15:31]} {[%emt 00:00:15]} Bb4
{[%clk 00:12:26]} {[%emt 00:00:51]} 15. Bf4 {[%clk 00:12:31]} {[%emt 00:03:04]}
d6 {[%clk 00:12:26]} {[%emt 00:00:06]} 16. Re7 {[%clk 00:12:23]} {[%emt
00:00:13]} Bf5 {[%clk 00:12:10]} {[%emt 00:00:20]} 17. Rxc7 {[%clk 00:11:47]}
{[%emt 00:00:41]} Rfc8 {[%clk 00:11:37]} {[%emt 00:00:39]} 18. Rxc8+ {[%clk
00:11:05]} {[%emt 00:00:47]} Rxc8 {[%clk 00:11:39]} {[%emt 00:00:03]} 19. Na2
{[%clk 00:11:06]} {[%emt 00:00:04]} Bc5 {[%clk 00:10:55]} {[%emt 00:00:48]} 20.
c3 {[%clk 00:10:34]} {[%emt 00:00:38]} Re8 {[%clk 00:10:25]} {[%emt 00:00:35]}
21. b4 {[%clk 00:09:17]} {[%emt 00:01:22]} Bb6 {[%clk 00:10:29]} 22. Bxd6
{[%clk 00:08:30]} {[%emt 00:00:52]} Re2 {[%clk 00:09:55]} {[%emt 00:00:39]} 23.
Bc5 {[%clk 00:08:09]} {[%emt 00:00:26]} Bxc5 {[%clk 00:09:32]} {[%emt
00:00:28]} 24. bxc5 {[%clk 00:08:11]} {[%emt 00:00:03]} Rxb2 {[%clk 00:09:20]}
{[%emt 00:00:16]} 25. Nb4 {[%clk 00:07:38]} {[%emt 00:00:39]} a5 {[%clk
00:09:10]} {[%emt 00:00:15]} 26. g4 {[%clk 00:06:44]} {[%emt 00:00:59]} Be4
{[%clk 00:07:56]} {[%emt 00:01:20]} 27. c6 {[%clk 00:05:59]} {[%emt 00:00:50]}
bxc6 {[%clk 00:07:53]} {[%emt 00:00:08]} 28. dxc6 {[%clk 00:05:59]} {[%emt
00:00:04]} Kf8 {[%clk 00:07:12]} {[%emt 00:00:46]} 29. c7 {[%clk 00:05:26]}
{[%emt 00:00:39]} Bb7 {[%clk 00:07:13]} {[%emt 00:00:04]} 30. Nc6 {[%clk
00:05:03]} {[%emt 00:00:27]} Ke8 {[%clk 00:06:29]} {[%emt 00:00:49]} 31. Rd1
{[%clk 00:05:01]} {[%emt 00:00:07]} 1-0